bitfinex/quotes_ETHUSD_20220117
["timestamp","ask_amount","ask_price","bid_price","bid_amount"]
[1642429002232,0.00227369,3261.6,3261.1,2.74022148]
[1642429002638,1.38475351,3261.8,3260.8,6.9504]
[1642429002639,0.00170527,3261.5,3260.8,6.9504]
[1642429002837,0.00170527,3261.5,3260.8,3.2145]
[1642429003134,0.00113684,3261.4,3260.9,0.00170527]
[1642429003336,0.00639679,3261.3,3260.9,0.00170527]
[1642429003634,1.23322158,3261.3,3261.0,1.50587713]
[1642429005604,1.23322158,3261.3,3260.9,0.00170527]
[1642429006004,1.23322158,3261.3,3260.6,1.0666405]
[1642429006005,1.23322158,3261.3,3260.7,0.00284212]
[1642429006905,1.23322158,3261.3,3260.8,1.31548546]
[1642429007105,1.23322158,3261.3,3260.8,1.61548546]
[1642429007307,1.23322158,3261.3,3260.7,0.00284212]
[1642429007923,1.53322158,3261.3,3260.7,0.00284212]
[1642429008128,1.23322158,3261.3,3260.7,0.00284212]
[1642429009130,1.23322158,3261.3,3260.5,0.00397897]
[1642429009531,1.45918309,3260.9,3260.5,0.00397897]
[1642429009929,1.45918309,3260.9,3260.4,0.00454739]
[1642429010333,1.45918309,3260.9,3260.4,0.3]
[1642429010532,1.26893483,3260.5,3260.4,0.30454739]
[1642429010740,1.26893483,3260.5,3260.0,0.0008]
[1642429010937,3.59796148,3260.4,3260.0,0.0008]
[1642429011134,3.51521835,3260.4,3260.1,0.00625266]
[1642429011577,3.50444364,3260.4,3260.1,0.00625266]
[1642429011780,3.52611579,3260.4,3260.1,0.00625266]
[1642429011980,3.51998212,3260.4,3260.1,0.00625266]
[1642429012379,3.49758853,3260.4,3260.1,0.00625266]
[1642429012980,1.26893483,3260.5,3260.1,0.00625266]
[1642429013182,3.60106303,3260.4,3260.1,0.00625266]
[1642429014384,1.26893483,3260.5,3260.1,0.00625266]
[1642429017230,10.37623556,3261.2,3260.1,0.00625266]
[1642429017432,3.55757217,3261.1,3260.2,0.03259794]
[1642429017630,3.7285,3261.2,3260.1,0.00625266]
[1642429017830,3.87470842,3261.1,3260.3,0.00511582]
[1642429018431,1.39502087,3260.6,3260.3,0.00511582]
[1642429018633,1.5275151,3260.5,3260.3,0.00511582]
[1642429023530,1.24233438,3260.4,3260.3,0.00511582]
[1642429023730,1.5275151,3260.5,3260.3,0.00511582]
[1642429024229,9.49643706,3261.2,3260.3,0.00511582]
[1642429025033,1.11758023,3260.9,3260.3,0.00511582]
[1642429027278,2.62226789,3260.8,3260.3,0.00511582]
[1642429028079,1.37873015,3260.7,3260.3,0.00511582]
[1642429028279,0.01601538,3260.6,3260.3,0.00511582]
[1642429028577,1.37873015,3260.7,3260.3,0.00511582]
[1642429028778,1.27873015,3260.7,3260.3,0.00511582]
[1642429028978,2.62226789,3260.6,3260.3,0.00511582]
[1642429029577,1.27873015,3260.7,3260.3,0.00511582]
[1642429030625,2.62220995,3260.6,3260.3,0.00511582]
[1642429031427,1.27873015,3260.7,3260.3,0.00511582]
[1642429031630,1.27873015,3260.7,3260.0,1.73285644]
[1642429031829,0.00170528,3260.6,3260.1,0.00113684]
[1642429032334,0.00113685,3260.5,3260.1,3.06772324]
[1642429032532,0.00113685,3260.5,3260.2,1.74]
[1642429032739,3.6399,3261.2,3260.2,1.74]
[1642429032740,2.62219201,3260.6,3260.2,1.74]
[1642429033131,2.62219201,3260.6,3260.3,21.25]
[1642429033331,2.62219201,3260.6,3260.5,16.30766902]
[1642429033533,1.4637091,3261.4,3260.7,2.29933]
[1642429033732,3.47475207,3261.7,3260.8,1.20644]
[1642429033974,0.00454739,3261.3,3260.8,1.20644]
[1642429034176,0.00454739,3261.3,3260.8,2.80644]
[1642429034383,0.00397897,3261.2,3260.8,2.80644]
[1642429034579,0.00397897,3261.2,3260.9,0.766448]
[1642429034778,0.00341054,3261.1,3260.9,1.206448]
[1642429035178,0.00284212,3261.0,3260.9,1.206448]
[1642429035981,0.00284212,3261.0,3260.9,14.256448]
[1642429036183,0.00284212,3261.0,3260.9,15.256448]
[1642429036683,0.00284212,3261.0,3260.9,1.206448]
[1642429036884,0.00284212,3261.0,3260.9,7.106448]
[1642429037736,0.00284212,3261.0,3260.9,7.406448]
[1642429037940,2.62154004,3261.5,3261.0,11.93273]
[1642429038134,2.62154004,3261.5,3261.1,1.766362]
[1642429038333,0.00227369,3261.4,3261.1,1.766362]
[1642429038733,0.00170527,3261.3,3261.1,1.766362]
[1642429039135,0.00113685,3261.2,3261.1,1.766362]
[1642429039340,2.62154004,3261.7,3261.1,3.299092]
[1642429039535,2.62154004,3261.7,3261.2,23.0826346]
[1642429039735,0.00113684,3261.4,3261.2,23.5226346]
[1642429039934,0.00113684,3261.4,3261.3,17.75]
[1642429040135,0.00113684,3261.4,3261.3,18.19]
[1642429040335,0.00113684,3261.4,3261.3,19.72261]
[1642429040539,0.00113684,3261.4,3261.3,20.02261]
[1642429040734,3.6213,3262.6,3261.7,0.7662236]
[1642429040937,5.16450547,3262.6,3261.8,0.44]
[1642429041136,5.16450547,3262.6,3261.9,0.44]
[1642429041379,5.16450547,3262.6,3262.2,1.12953166]
[1642429041582,5.16450547,3262.6,3262.2,1.89571166]
[1642429041781,5.16450547,3262.6,3262.2,0.76618]
[1642429042583,5.16450547,3262.6,3262.3,0.7661854]
[1642429042584,2.62078472,3262.5,3262.3,0.7661854]
[1642429042983,0.00568424,3262.4,3262.2,0.76618]
[1642429043188,0.00568424,3262.4,3262.1,1.5323708]
[1642429043384,1.20928039,3262.2,3262.1,1.5323708]
[1642429043585,1.20928039,3262.2,3262.1,1.8323708]
[1642429043784,0.00454739,3262.2,3262.1,1.8323708]
[1642429044986,2.62533211,3262.2,3262.1,1.8323708]
[1642429045661,2.62533211,3262.2,3262.1,0.3]
[1642429045865,2.62533211,3262.2,3262.1,22.99]
[1642429047160,3.06057167,3263.0,3262.2,12.46606]
[1642429047460,0.00397896,3262.9,3262.5,0.76606]
[1642429047860,0.00341054,3262.8,3262.5,2.06606]
[1642429048260,0.00284212,3262.7,3262.5,2.06606]
[1642429048659,1.36470053,3263.0,3262.5,2.06606]
[1642429048660,0.00227369,3262.6,3262.5,2.06606]
[1642429048873,0.00227369,3262.6,3262.5,8.0]
[1642429050781,0.00227369,3262.6,3262.5,13.85]
[1642429050984,0.00227369,3262.6,3262.5,14.29]
[1642429051179,0.00227369,3262.6,3262.5,8.44]
[1642429051383,0.00227369,3262.6,3262.5,7.14]
[1642429051591,0.00227369,3262.6,3262.5,8.44]
[1642429052480,0.00227369,3262.6,3262.5,1.74]
[1642429052728,0.00227369,3262.6,3262.5,0.44]
[1642429052927,0.00227369,3262.6,3262.5,1.74]
[1642429053127,0.00227369,3262.6,3262.5,0.44]
[1642429053328,0.00227369,3262.6,3262.5,1.44]
[1642429053537,0.00227369,3262.6,3262.5,1.74]
[1642429053730,0.00227369,3262.6,3262.5,8.09]
[1642429053930,0.00227369,3262.6,3262.5,7.79]
[1642429054129,0.00227369,3262.6,3262.5,6.79]
[1642429054329,0.00227369,3262.6,3262.5,1.44]
[1642429055029,0.00227369,3262.6,3262.4,1.53212]
[1642429055230,0.00227369,3262.6,3262.1,1.20623]
[1642429055529,0.00170527,3262.5,3262.1,2.50623]
[1642429055731,0.00170527,3262.5,3262.1,1.50623]
[1642429055930,0.00113685,3262.4,3262.2,1.0]
[1642429056232,0.00113685,3262.4,3262.1,2.50623]
[1642429056479,1.17326282,3262.4,3262.1,2.50623]
[1642429056685,2.52640742,3262.4,3262.1,2.50623]
[1642429056883,2.52640742,3262.4,3262.1,1.74]
[1642429057084,2.52640742,3262.4,3262.1,0.74]
[1642429057284,2.52640742,3262.4,3262.1,1.74]
[1642429057486,2.52640742,3262.4,3261.7,2.92987362]
[1642429057784,2.44640742,3262.4,3261.9,0.00170527]
[1642429057986,2.44640742,3262.4,3261.9,0.00284212]
[1642429058790,0.0107667,3262.3,3261.9,0.30284212]
[1642429059085,0.0107667,3262.3,3261.8,0.27639994]
[1642429059086,2.44640742,3262.4,3262.0,0.0022737]
[1642429059484,2.44640742,3262.4,3261.9,0.00284212]
[1642429061636,2.44640742,3262.4,3261.8,0.16203686]
[1642429061836,0.00227369,3262.3,3261.8,0.16203686]
[1642429062136,2.44640742,3262.4,3261.8,0.16203686]
[1642429062137,0.00170527,3262.2,3261.8,0.16203686]
[1642429062636,0.00113685,3262.1,3261.8,0.16203686]
[1642429063237,1.40735056,3261.9,3261.8,0.16203686]
[1642429066785,1.40735056,3261.9,3261.6,0.44]
[1642429067086,1.40735056,3261.9,3261.7,0.00113685]
[1642429068137,0.00113685,3262.1,3261.7,0.00113685]
[1642429068534,0.00113685,3262.1,3261.7,0.30113685]
[1642429068934,0.00113685,3262.1,3261.7,1.30113685]
[1642429069536,0.00113685,3262.1,3261.7,0.30113685]
[1642429069735,0.00113685,3262.1,3261.7,1.30113685]
[1642429070036,0.00113685,3262.1,3261.7,0.30113685]
[1642429070237,0.00113685,3262.1,3261.7,1.30113685]
[1642429070438,1.35923637,3262.1,3261.7,1.30113685]
[1642429070638,1.35923637,3262.1,3261.7,0.30113685]
[1642429070837,1.35923637,3262.1,3261.7,1.30113685]
[1642429071037,1.35923637,3262.1,3261.7,0.30113685]
[1642429071480,1.35923637,3262.1,3261.7,0.00113685]
[1642429071683,0.00113685,3262.1,3261.7,1.00113685]
[1642429072486,0.00113685,3262.1,3261.7,0.00113685]
[1642429072685,0.00113685,3262.1,3261.7,1.00113685]
[1642429072887,0.00113685,3262.1,3261.7,0.00113685]
[1642429073089,0.00113685,3262.1,3261.8,0.44]
[1642429073387,5.79759357,3263.5,3262.2,0.76607]
[1642429073587,5.79759357,3263.5,3262.3,4.80751328]
[1642429073786,0.00397896,3262.8,3262.3,4.80751328]
[1642429073987,0.00397896,3262.8,3262.7,1.41125367]
[1642429074193,2.62038023,3262.8,3262.7,1.85125367]
[1642429074589,2.62038023,3262.8,3262.7,11.34254876]
[1642429074888,2.62038023,3262.8,3262.7,7.75125367]
[1642429075933,2.62038023,3262.8,3262.7,11.32901322]
[1642429076136,2.62038023,3263.1,3262.7,12.09504182]
[1642429076535,2.62606446,3263.1,3262.7,12.09504182]
[1642429076936,2.62606446,3263.1,3262.8,0.76605]
[1642429077338,2.62606446,3263.1,3262.8,1.76605]
[1642429077537,2.62606446,3263.1,3262.8,5.1783915]
[1642429077738,2.62606446,3263.1,3262.8,0.76605]
[1642429078041,0.00666135,3263.0,3262.4,1.0]
[1642429078341,0.00454738,3262.9,3262.4,1.0]
[1642429078540,0.00454738,3262.9,3261.7,3.61673556]
[1642429078743,0.00397896,3262.8,3261.7,3.61673556]
[1642429079178,1.22408528,3262.2,3261.7,3.61673556]
[1642429079586,1.41117363,3262.0,3261.6,1.2316]
[1642429079887,1.41117363,3262.0,3261.6,0.45044991]
[1642429080086,1.41117363,3262.0,3261.6,1.45044991]
[1642429080685,1.41117363,3262.0,3261.9,0.00113685]
[1642429081086,1.41117363,3262.0,3261.7,0.0022737]
[1642429081585,1.28535466,3262.0,3261.7,0.0022737]
[1642429081785,1.20244783,3261.4,3261.3,0.00454739]
[1642429081989,1.20244783,3261.4,3261.2,0.45044991]
[1642429082831,1.36306021,3261.3,3261.0,0.44]
[1642429083034,1.36306021,3261.3,3261.0,0.74]
[1642429083331,1.36306021,3261.3,3261.1,0.00568424]
[1642429086583,1.20244783,3261.4,3261.1,0.00568424]
[1642429087685,1.20244783,3261.4,3261.1,1.00568424]
[1642429088085,1.20244783,3261.4,3261.2,0.00511581]
[1642429089389,1.20244783,3261.4,3261.2,3.43306572]
[1642429089791,1.20244783,3261.4,3261.3,9.00454739]
[1642429090841,1.20244783,3261.4,3261.3,0.00454739]
[1642429091242,1.20244783,3261.4,3261.2,0.00511581]
[1642429094084,1.20244783,3261.4,3261.2,0.44511581]
[1642429094283,4.983,3262.3,3261.3,3.44377888]
[1642429094484,3.7638,3262.3,3261.3,0.00454739]
[1642429094683,4.0638,3262.3,3261.4,0.00397897]
[1642429094886,4.0638,3262.3,3261.3,0.00454739]
[1642429095094,1.41689287,3261.6,3261.3,0.00454739]
[1642429095289,1.2137303,3261.4,3261.3,0.00454739]
[1642429096189,1.2137303,3261.4,3261.3,6.75454739]
[1642429097751,1.41689287,3261.6,3261.3,10.22087825]
[1642429097945,1.1543,3262.2,3261.3,10.22087825]
[1642429098145,4.0638,3262.3,3261.3,10.22087825]
[1642429098146,4.0638,3262.3,3261.4,4.20193129]
[1642429098546,4.0638,3262.3,3261.5,0.00341054]
[1642429099048,1.48591922,3261.6,3261.5,0.00341054]
[1642429099244,1.48591922,3261.6,3261.5,5.55341054]
[1642429099445,1.48591922,3261.6,3261.5,0.00341054]
[1642429099844,1.48591922,3261.6,3261.4,0.00397897]
[1642429100648,4.10699083,3261.6,3261.4,0.00397897]
[1642429101049,4.10699083,3261.6,3261.3,0.00454739]
[1642429101483,0.0074997,3261.5,3261.3,0.00454739]
[1642429101682,1.48591922,3261.6,3261.3,0.00454739]
[1642429102285,1.78591922,3261.6,3261.3,0.00454739]
[1642429102483,2.06831922,3261.6,3260.9,0.00682108]
[1642429102688,3.17221922,3261.6,3260.7,0.00795793]
[1642429103786,2.88981922,3261.6,3260.7,0.00795793]
[1642429103988,2.7197068,3260.8,3260.7,0.00795793]
[1642429104788,6.25668571,3261.5,3260.5,0.00909478]
[1642429104990,6.25668571,3261.5,3260.6,1.5329787]
[1642429105241,6.55668571,3261.5,3260.6,1.5329787]
[1642429105444,6.55668571,3261.5,3260.7,0.00795793]
[1642429106146,3.9349,3261.5,3260.7,0.00795793]
[1642429106348,2.64261822,3261.1,3260.7,0.00795793]
[1642429111200,2.64261822,3261.1,3260.5,0.00909478]
[1642429111398,2.64261822,3261.1,3260.5,1.00909478]
[1642429111799,2.64261822,3261.1,3260.6,0.00852635]
[1642429112300,2.64261822,3261.1,3260.5,0.00909478]
[1642429112500,2.64261822,3261.1,3260.5,1.00909478]
[1642429113037,2.64261822,3261.1,3260.6,0.00852635]
[1642429113438,2.64261822,3261.1,3260.5,0.00909478]
[1642429114239,2.64261822,3261.1,3260.5,1.00909478]
[1642429114639,2.64261822,3261.1,3260.6,0.00852635]
[1642429114840,3.6349,3261.5,3260.6,0.00852635]
[1642429115147,3.6349,3261.5,3260.7,0.44]
[1642429115340,3.6349,3261.5,3260.7,2.20500204]
[1642429115541,3.6349,3261.5,3260.8,0.00738951]
[1642429115743,3.6349,3261.5,3261.3,1.42005824]
[1642429115941,4.6624415,3262.1,3261.4,0.44]
[1642429115942,5.94168136,3262.1,3261.4,0.44]
[1642429116145,4.76338136,3262.1,3261.4,0.74397897]
[1642429116400,4.76338136,3262.1,3261.5,0.00341054]
[1642429116593,4.76338136,3262.1,3261.5,0.44341054]
[1642429116994,4.76338136,3262.1,3261.6,0.76912212]
[1642429117193,4.76338136,3262.1,3261.6,1.53542282]
[1642429117395,4.76338136,3262.1,3261.7,0.0022737]
[1642429117598,1.27923986,3262.1,3261.7,0.0022737]
[1642429118800,1.18531883,3262.0,3261.7,0.0022737]
[1642429119598,3.915,3262.2,3261.8,0.44]
[1642429119800,3.915,3262.2,3261.8,1.9724462]
[1642429120001,1.2277,3262.7,3261.9,0.00113685]
[1642429120232,1.54320547,3263.0,3261.9,3.94133664]
[1642429120432,9.64599357,3263.2,3261.9,3.94133664]
[1642429120433,0.00284211,3262.6,3261.9,3.94133664]
[1642429120637,0.00284211,3262.6,3262.3,1.18208974]
[1642429120841,0.00227369,3262.5,3262.4,19.69]
[1642429121235,0.00227369,3262.5,3262.4,20.69]
[1642429121835,0.00227369,3262.5,3262.4,21.45605]
[1642429122436,0.00227369,3262.5,3262.4,21.4560644]
[1642429123641,0.00227369,3262.5,3262.4,22.57584739]
[1642429123897,0.00227369,3262.5,3262.4,21.4560644]
[1642429126395,0.00227369,3262.5,3262.4,21.3460644]
[1642429127837,0.00227369,3262.5,3262.4,21.6460644]
[1642429128039,0.00227369,3262.5,3262.4,2.0960644]
[1642429128838,0.00227369,3262.5,3262.4,11.7460644]
[1642429129439,0.00227369,3262.5,3262.4,12.5120944]
[1642429129841,0.00227369,3262.5,3262.4,17.3120944]
[1642429130240,0.00227369,3262.5,3262.4,17.6120944]
[1642429130447,5.25150547,3264.1,3262.5,21.25]
[1642429130448,6.41050547,3264.1,3262.5,21.25]
[1642429130643,10.01260547,3264.1,3262.9,0.76588]
[1642429130841,10.01260547,3264.1,3263.0,20.14]
[1642429130842,0.00341054,3263.1,3263.0,20.14]
[1642429131042,0.00341054,3263.1,3263.0,22.2831748]
[1642429132289,7.0862415,3264.1,3263.3,0.76578]
[1642429132490,3.6021,3264.1,3263.4,0.57819997]
[1642429132690,0.00511581,3264.0,3263.4,0.57819997]
[1642429132887,0.00511581,3264.0,3263.4,1.57819997]
[1642429133087,3.6021,3264.1,3263.5,3.52346411]
[1642429133088,0.00454739,3263.9,3263.5,3.52346411]
[1642429133288,0.00454739,3263.9,3263.6,1.75709994]
[1642429133487,0.00397897,3263.8,3263.7,12.54]
[1642429133690,0.00397897,3263.8,3263.7,0.44]
[1642429133893,0.00397897,3263.8,3263.7,1.44]
[1642429134188,0.00397897,3263.8,3263.7,0.44]
[1642429135330,1.52655164,3263.8,3263.7,0.44]
[1642429137935,0.00397897,3263.8,3263.7,0.44]
[1642429138896,0.00397897,3263.8,3263.7,9.29]
[1642429139289,0.00397897,3263.8,3263.7,13.76942396]
[1642429139490,0.00397897,3263.8,3263.7,14.06942396]
[1642429139791,0.00397897,3263.8,3263.7,26.21942396]
[1642429139991,0.00397897,3263.8,3263.7,26.91522396]
[1642429140692,0.00397897,3263.8,3263.7,28.44663396]
[1642429141794,0.00397897,3263.8,3263.7,16.29663396]
[1642429141993,0.00397897,3263.8,3263.7,15.60083396]
[1642429142195,0.02936377,3264.7,3263.8,21.25]
[1642429142397,5.50740547,3265.5,3264.1,0.76557]
[1642429142638,1.54320547,3265.5,3264.4,21.25]
[1642429142839,1.54320547,3265.5,3264.5,18.35]
[1642429143038,1.54320547,3265.5,3264.6,2.3903433]
[1642429143039,0.00454739,3265.4,3264.6,2.3903433]
[1642429143238,0.00454739,3265.4,3265.3,10.06093559]
[1642429143442,1.54320547,3265.5,3265.4,1.31206712]
[1642429143640,1.54320547,3265.5,3265.4,1.75206712]
[1642429143839,1.54832129,3265.5,3265.4,1.44]
[1642429144042,0.00511582,3265.5,3265.4,0.44]
[1642429144348,0.00511582,3265.5,3265.4,1.44]
[1642429144639,0.00511582,3265.5,3265.4,7.44]
[1642429144843,0.00511582,3265.5,3265.4,0.44]
[1642429145242,0.00511582,3265.5,3264.7,9.74471192]
[1642429145243,0.00511582,3265.5,3264.5,0.78943349]
[1642429145443,0.00511582,3265.5,3264.7,0.44]
[1642429145641,0.00454739,3265.4,3264.7,0.44]
[1642429146042,0.00397897,3265.3,3264.8,1.31320046]
[1642429146490,0.00341054,3265.2,3264.9,3.49405491]
[1642429146893,0.00284212,3265.1,3265.0,15.99]
[1642429147089,0.00284212,3265.1,3265.0,16.99]
[1642429147489,0.00284212,3265.1,3265.0,18.27431239]
[1642429148693,0.00284212,3265.1,3265.0,16.99]
[1642429148899,0.00284212,3265.1,3265.0,1.44]
[1642429149095,0.00284212,3265.1,3265.0,0.44]
[1642429150333,0.00284212,3265.1,3264.8,2.31320046]
[1642429150531,0.00284212,3265.1,3264.8,1.31320046]
[1642429150736,0.0022737,3265.0,3264.8,1.31320046]
[1642429150935,0.0022737,3265.0,3264.8,2.07873046]
[1642429151136,0.00170527,3264.9,3264.8,2.07873046]
[1642429151335,0.00170527,3264.9,3264.8,1.31320046]
[1642429151538,0.00170527,3264.9,3264.8,24.60151551]
[1642429151936,0.00170527,3264.9,3264.8,25.60151551]
[1642429152337,0.00170527,3264.9,3264.8,26.36702551]
[1642429152538,0.00170527,3264.9,3264.8,26.80702551]
[1642429152941,3.8882,3266.3,3265.2,0.765348]
[1642429153141,0.23700808,3266.4,3265.3,6.28206421]
[1642429153340,0.23700808,3266.4,3265.3,6.58206421]
[1642429153539,0.23700808,3266.4,3265.7,1.38374559]
[1642429153744,0.23700808,3266.4,3266.1,1.21023881]
[1642429154187,0.00738951,3266.2,3266.1,1.21023881]
[1642429155193,0.00738951,3266.2,3265.6,1.0]
[1642429155393,0.00738951,3266.2,3265.6,1.3]
[1642429155593,0.00682109,3266.1,3265.6,0.3]
[1642429155792,0.00682109,3266.1,3265.5,1.74]
[1642429155994,0.00625266,3266.0,3265.5,0.74]
[1642429156192,0.00625266,3266.0,3265.9,1.23739289]
[1642429156393,0.122645,3266.4,3265.9,1.23739289]
[1642429156796,0.00795793,3266.3,3265.9,1.23739289]
[1642429157194,0.00738951,3266.2,3265.9,1.23739289]
[1642429157638,0.00682109,3266.1,3265.9,1.23739289]
[1642429158041,0.00625266,3266.0,3265.9,1.23739289]
[1642429158641,0.00625266,3266.0,3265.6,1.0]
[1642429159041,0.00568424,3265.9,3265.5,2.20536]
[1642429159242,0.00568424,3265.9,3265.5,2.50536]
[1642429159444,0.00511582,3265.8,3265.5,2.50536]
[1642429159645,0.00511582,3265.8,3265.6,1.23533498]
[1642429159948,0.00454739,3265.7,3265.6,1.23533498]
[1642429161513,0.00454739,3265.7,3265.6,18.48770883]
[1642429161913,0.00454739,3265.7,3265.6,15.98217926]
[1642429163114,0.00454739,3265.7,3265.6,14.68533498]
[1642429163315,0.00454739,3265.7,3265.6,2.23533498]
[1642429163515,0.00454739,3265.7,3265.6,9.63533498]
[1642429163715,0.00454739,3265.7,3265.6,1.0]
[1642429163916,0.00454739,3265.7,3265.5,3.035954]
[1642429163917,0.00454739,3265.7,3265.5,0.44]
[1642429164117,7.532645,3266.4,3265.4,1.2283]
[1642429164316,0.122645,3266.4,3265.5,4.18365148]
[1642429164517,0.122645,3266.4,3265.6,5.496]
[1642429164518,0.00284212,3266.2,3265.6,5.496]
[1642429164718,0.00284212,3266.2,3265.7,0.44]
[1642429164916,0.0022737,3266.1,3265.7,0.44]
[1642429165139,0.0022737,3266.1,3265.9,1.20827246]
[1642429165336,0.00170527,3266.0,3265.9,1.97348246]
[1642429165538,0.00170527,3266.0,3265.9,6.57348246]
[1642429165740,0.00341054,3266.0,3265.9,6.57348246]
[1642429165940,0.00341054,3266.0,3265.9,7.57348246]
[1642429166542,0.00341054,3266.0,3265.9,12.62348246]
[1642429166741,0.00341054,3266.0,3265.9,13.38869986]
[1642429167342,0.00341054,3266.0,3265.9,8.33869986]
[1642429168541,0.00341054,3266.0,3265.9,19.68869986]
[1642429168741,0.00341054,3266.0,3265.9,20.12869986]
[1642429169291,0.00341054,3266.0,3265.9,8.77869986]
[1642429170497,0.00341054,3266.0,3265.9,14.12869986]
[1642429171099,0.00341054,3266.0,3265.9,8.77869986]
[1642429171298,0.00341054,3266.0,3265.9,14.12869986]
[1642429171698,0.00341054,3266.0,3265.9,4.47869986]
[1642429172300,0.00341054,3266.0,3265.9,13.47869986]
[1642429175554,0.00341054,3266.0,3265.9,2.64827246]
[1642429175750,0.00341054,3266.0,3265.5,20.00113684]
[1642429175952,0.00341054,3266.0,3265.5,0.00113684]
[1642429176247,0.00113685,3265.9,3265.5,0.00113684]
[1642429176686,1.16124127,3266.1,3265.5,1.56211079]
[1642429177088,0.00170527,3266.0,3265.5,2.56211079]
[1642429177491,0.00113685,3265.9,3265.5,1.56211079]
[1642429177993,0.00113685,3265.9,3265.5,2.56211079]
[1642429178795,0.00113685,3265.9,3265.5,2.86211079]
[1642429179196,0.00113685,3265.9,3265.5,2.56211079]
[1642429179600,0.00113685,3265.9,3265.5,6.39044354]
[1642429179797,0.00113685,3265.9,3265.5,6.09044354]
[1642429179998,0.00113685,3265.9,3265.5,2.56211079]
[1642429180256,0.00113685,3265.9,3265.6,3.43041875]
[1642429180656,0.00113685,3265.9,3265.7,1.0]
[1642429180866,0.00113685,3265.9,3265.6,1.0]
[1642429181055,0.00113685,3265.9,3265.5,2.50650614]
[1642429181260,0.00113685,3265.9,3265.5,2.20650614]
[1642429181455,0.00113685,3265.9,3265.6,3.45381889]
[1642429181754,0.00113685,3265.9,3265.5,5.62840578]
[1642429181954,0.00113685,3265.9,3265.5,2.20650614]
[1642429182160,0.00113685,3265.9,3265.5,2.50650614]
[1642429182359,0.00113685,3265.9,3265.5,2.20650614]
[1642429182961,0.00113685,3265.9,3265.5,2.50650614]
[1642429183164,0.00113685,3265.9,3265.5,5.9220055]
[1642429184089,0.00113685,3265.9,3265.5,5.96146829]
[1642429184292,0.00113685,3265.9,3265.5,2.50650614]
[1642429184492,0.00113685,3265.9,3265.5,5.94510554]
[1642429184895,0.00113685,3265.9,3265.5,6.21420554]
[1642429185098,2.61839396,3266.1,3265.5,6.21420554]
[1642429185099,0.12794768,3266.1,3265.6,26.93896884]
[1642429185295,0.12794768,3266.1,3266.0,21.2437678]
[1642429185494,0.12794768,3266.1,3266.0,27.4797678]
[1642429185694,0.00113685,3266.1,3266.0,28.4797678]
[1642429185898,0.00113685,3266.1,3266.0,31.06914813]
[1642429186296,0.00113685,3266.1,3266.0,31.83424813]
[1642429188554,0.00113685,3266.1,3266.0,32.37601384]
[1642429188747,0.122645,3266.4,3266.2,0.76512]
[1642429188948,0.122645,3266.4,3266.3,0.47545389]
[1642429189147,1.1975,3267.3,3266.3,0.47545389]
[1642429189548,0.00454738,3266.9,3266.8,1.46782469]
[1642429189748,0.00454738,3266.9,3266.8,1.90782469]
[1642429190149,0.00454738,3266.9,3266.8,7.05782469]
[1642429190350,0.00454738,3266.9,3266.8,8.05782469]
[1642429190551,0.00454738,3266.9,3266.8,9.12288469]
[1642429190750,0.00454738,3266.9,3266.8,9.32678469]
[1642429190951,0.00454738,3266.9,3266.8,9.36252018]
[1642429191153,0.00454738,3266.9,3266.8,24.17678469]
[1642429192500,3.6895,3267.9,3267.1,0.7649215]
[1642429192501,3.64017186,3267.8,3267.1,0.7649215]
[1642429192703,3.6895,3267.9,3267.3,0.76493]
[1642429192900,3.6895,3267.9,3267.0,4.7819829]
[1642429192901,0.30511581,3267.8,3267.4,0.44]
[1642429193102,0.00511581,3267.8,3267.4,0.44]
[1642429193304,0.00454739,3267.7,3267.4,0.44]
[1642429193502,1.40445562,3267.5,3267.4,0.44]
[1642429193709,1.4036311,3267.6,3267.4,0.74]
[1642429193903,0.00341054,3267.5,3267.4,0.74]
[1642429194104,0.00341054,3267.5,3267.4,5.79]
[1642429194504,0.00341054,3267.5,3267.4,6.79]
[1642429194905,0.00341054,3267.5,3267.4,1.74]
[1642429195157,0.00341054,3267.5,3267.4,0.74]
[1642429195344,0.00341054,3267.5,3267.4,0.44]
[1642429195545,0.00341054,3267.5,3267.4,0.74]
[1642429196746,0.00341054,3267.5,3267.4,0.44]
[1642429197450,0.00341054,3267.5,3267.4,0.74]
[1642429197650,1.27067231,3267.5,3267.4,0.74]
[1642429197852,1.27067231,3267.5,3267.4,0.44]
[1642429198894,0.30341054,3267.5,3267.4,0.44]
[1642429199294,0.00341054,3267.5,3267.4,0.44]
[1642429200697,0.17990054,3267.5,3267.0,1.0]
[1642429200899,1.45770972,3267.4,3266.9,15.443]
[1642429201097,3.60216471,3267.3,3266.9,15.003]
[1642429201297,3.60443841,3267.3,3266.9,15.003]
[1642429201500,1.40067938,3267.1,3266.9,15.003]
[1642429201899,1.70067938,3267.1,3266.9,15.003]
[1642429202499,0.0022737,3267.3,3266.9,15.003]
[1642429202950,0.00170527,3267.2,3266.9,15.003]
[1642429203351,0.00113685,3267.1,3266.9,15.003]
[1642429203753,0.00284212,3267.4,3266.9,15.003]
[1642429204056,0.0022737,3267.3,3266.9,15.003]
[1642429204450,0.00170527,3267.2,3266.9,15.003]
[1642429204854,0.17649,3267.5,3266.9,15.003]
[1642429204855,0.00113685,3267.1,3266.9,15.003]
[1642429205253,1.34814093,3267.2,3266.9,15.003]
[1642429205654,0.00113685,3267.1,3266.9,15.003]
[1642429206694,2.61871411,3267.1,3266.9,15.003]
[1642429207290,2.61871411,3267.1,3267.0,8.32443333]
[1642429207492,2.61871411,3267.1,3267.0,1.17443333]
[1642429207696,0.00113685,3267.1,3267.0,1.17443333]
[1642429207895,0.00113685,3267.1,3267.0,5.47443333]
[1642429208295,0.00113685,3267.1,3267.0,1.17443333]
[1642429208496,0.00113685,3267.1,3266.9,15.003]
[1642429209199,0.00113685,3267.1,3267.0,13.4]
[1642429210651,0.00113685,3267.1,3267.0,14.85784558]
[1642429211256,0.17649,3267.5,3267.1,21.2]
[1642429211455,0.17649,3267.5,3267.3,0.02950501]
[1642429211653,0.17649,3267.5,3267.3,1.0248]
[1642429211654,0.00170527,3267.4,3267.3,1.0248]
[1642429211856,0.00170527,3267.4,3267.3,22.9648]
[1642429212054,0.00170527,3267.4,3267.3,25.33109064]
[1642429212257,1.54320547,3268.3,3267.4,19.33708462]
[1642429212455,1.54320547,3268.3,3267.6,5.496]
[1642429212654,0.00454739,3268.2,3267.7,0.44]
[1642429212855,0.00454739,3268.2,3267.8,1.5293553]
[1642429213055,0.00397897,3268.1,3267.9,0.44]
[1642429213255,0.00397897,3268.1,3267.9,1.71929528]
[1642429213553,1.54320547,3268.9,3267.9,1.71929528]